lending/lending_fUSD_20241212
["ID","MTS","AMOUNT","RATE_DAILY","PERIOD"]
[345112405,1734024641086,-159.98213237,0.00019973,2]
[345112406,1734024641096,-514.53483198,0.00019973,2]
[345112407,1734024641106,-500.0,0.00019973,2]
[345112408,1734024641118,-500.0,0.00019973,2]
[345112409,1734024641127,-205.99560367,0.00019973,2]
[345112410,1734024641138,-515.60003674,0.00019973,2]
[345112411,1734024641147,-159.94082332,0.00019973,2]
[345112412,1734024641157,-504.00969305,0.00019973,2]
[345112413,1734024641166,-150.0,0.0002,2]
[345112414,1734024641177,-158.0,0.0002,2]
[345112415,1734024641186,-3946749.85078618,0.0002,2]
[345112416,1734024641205,-2112.23884391,0.0002,2]
[345112417,1734024641217,-1212.45000005,0.0002,2]
[345112418,1734024641241,-16534.04674203,0.0002,2]
[345112419,1734024641253,-59961.06103414,0.0002,2]
[345112420,1734024641265,-6946.88006711,0.0002,2]
[345112421,1734024641276,-29482.36505265,0.0002,2]
[345112422,1734024641287,-274.176,0.0002,2]
[345112423,1734024641844,-281.0,0.00019178,2]
[345112424,1734024641860,-224.00054918,0.00019178,2]
[345112425,1734024641868,-7844.85009119,0.0002,2]
[345112426,1734024642553,-500.0,0.00019178,2]
[345112427,1734024642563,-500.0,0.00019452,2]
[345112428,1734024642574,-500.0,0.00019726,2]
[345112429,1734024642583,-500.0,0.00019973,2]
[345112430,1734024642593,-477131.08144642,0.0002,2]
[345112431,1734024642602,-772.0,0.0002,60]
[345112432,1734024642612,-3245.799999,0.0002,2]
[345112433,1734024642627,-987.01,0.0002,2]
[345112434,1734024642637,-400.91767069,0.0002,2]
[345112435,1734024642646,-240.55060241,0.0002,2]
[345112436,1734024642656,-160.36706827,0.0002,2]
[345112437,1734024642669,-2503.67868822,0.0002,2]
[345112438,1734024642678,-1004.56090302,0.0002,2]
[345112439,1734024642688,-50197.60800832,0.0002,30]
[345112440,1734024642698,-792.2308278,0.0002,7]
[345112441,1734024642710,-1437.18,0.0002,2]
[345112443,1734024642719,-574.536,0.0002,2]
[345112444,1734024642729,-574.536,0.0002,2]
[345112446,1734024642739,-574.536,0.0002,2]
[345112449,1734024642749,-574.536,0.0002,2]
[345112451,1734024642758,-574.536,0.0002,2]
[345112454,1734024642766,-574.536,0.0002,2]
[345112455,1734024642775,-574.536,0.0002,2]
[345112456,1734024642784,-574.536,0.0002,2]
[345112457,1734024642792,-574.536,0.0002,2]
[345112458,1734024642801,-574.536,0.0002,2]
[345112459,1734024642811,-1000.0,0.0002,2]
[345112460,1734024642820,-500.0,0.0002,2]
[345112461,1734024642829,-500.0,0.0002,2]
[345112462,1734024642839,-500.0,0.0002,2]
[345112463,1734024642848,-1075.73,0.0002,2]
[345112464,1734024642857,-500.0,0.0002,2]
[345112465,1734024642867,-4993.0631589,0.0002,14]
[345112466,1734024642877,-500.0,0.0002,2]
[345112467,1734024642886,-500.0,0.0002,2]
[345112468,1734024642895,-500.0,0.0002,2]
[345112469,1734024642905,-500.0,0.0002,2]
[345112470,1734024642914,-374.78971597,0.0002,2]
[345112471,1734024642923,-500.0,0.00020049,2]
[345112472,1734024642933,-500.0,0.00020049,2]
[345112473,1734024642942,-500.0,0.00020049,2]
[345112474,1734024642952,-500.0,0.00020049,2]
[345112475,1734024642961,-500.0,0.00020049,2]
[345112476,1734024642970,-353.90798146,0.00020049,2]
[345112477,1734024642980,-500.0,0.00020049,2]
[345112478,1734024642989,-598.45,0.00020049,2]
[345112479,1734024642999,-500.0,0.00020049,2]
[345112480,1734024643008,-500.0,0.00020049,2]
[345112481,1734024643018,-640.93246236,0.00020049,2]
[345112482,1734024643027,-500.0,0.00020049,2]
[345112483,1734024643037,-500.0,0.00020049,2]
[345112484,1734024643046,-617.5,0.00020049,2]
[345112485,1734024643056,-500.0,0.00020049,2]
[345112486,1734024643065,-500.0,0.00020049,2]
[345112487,1734024643074,-500.0,0.00020049,2]
[345112488,1734024643084,-500.0,0.00020049,2]
[345112489,1734024643093,-500.0,0.00020049,2]
[345112490,1734024643103,-500.0,0.00020049,2]
[345112491,1734024643112,-500.0,0.00020049,2]
[345112492,1734024643121,-500.0,0.00020049,2]
[345112493,1734024643131,-500.0,0.00020049,2]
[345112494,1734024643141,-630.37,0.00020049,2]
[345112495,1734024643151,-500.0,0.00020049,2]
[345112496,1734024643160,-500.0,0.00020049,2]
[345112497,1734024643170,-500.0,0.00020049,2]
[345112498,1734024643179,-500.0,0.00020049,2]
[345112499,1734024643189,-528.03,0.00020049,2]
[345112500,1734024643198,-500.0,0.00020049,2]
[345112501,1734024643206,-460.76506278,0.00020051,2]
[345112502,1734024643215,-2206.0475,0.00020071,2]
[345112503,1734024643224,-802.7695,0.00020071,2]
[345112504,1734024643233,-500.0,0.00020171,2]
[345112505,1734024643243,-500.0,0.00020171,2]
[345112506,1734024643252,-500.0,0.00020171,2]
[345112507,1734024643261,-500.0,0.00020171,2]
[345112508,1734024643270,-500.0,0.00020171,2]
[345112509,1734024643280,-500.0,0.00020171,2]
[345112510,1734024643289,-500.0,0.00020171,2]
[345112511,1734024643298,-500.0,0.00020171,2]
[345112512,1734024643306,-500.0,0.00020171,2]
[345112513,1734024643316,-500.0,0.00020171,2]
[345112514,1734024643325,-500.0,0.00020171,2]
[345112515,1734024643334,-500.0,0.00020171,2]
[345112516,1734024643344,-500.0,0.00020171,2]
[345112517,1734024643354,-500.0,0.00020171,2]
[345112518,1734024643364,-500.0,0.00020171,2]
[345112519,1734024643373,-500.0,0.00020171,2]
[345112520,1734024643383,-500.0,0.00020171,2]
[345112521,1734024643392,-500.0,0.00020171,2]
[345112522,1734024643401,-500.0,0.00020171,2]
[345112523,1734024643411,-500.0,0.00020171,2]
[345112524,1734024643420,-500.0,0.00020171,2]
[345112526,1734024643430,-500.0,0.00020171,2]
[345112527,1734024643440,-500.0,0.00020171,2]
[345112528,1734024643449,-500.0,0.00020171,2]
[345112530,1734024643459,-501.14325651,0.00020171,2]
[345112532,1734024643469,-502.43486742,0.00020171,2]
[345112534,1734024643478,-500.0,0.00020171,2]
[345112536,1734024643488,-500.0,0.00020171,2]
[345112538,1734024643497,-500.0,0.00020171,2]
[345112540,1734024643507,-500.0,0.00020171,2]
[345112542,1734024643517,-500.0,0.00020171,2]
[345112543,1734024643527,-535.03,0.00020171,2]
[345112544,1734024643536,-422.36627238,0.00020171,2]
[345112545,1734024643545,-500.0,0.00020171,2]
[345112546,1734024643555,-678.38,0.00020171,2]
[345112547,1734024643564,-500.0,0.00020171,2]
[345112548,1734024643573,-500.0,0.00020171,2]
[345112549,1734024643582,-653.16,0.00020171,2]
[345112550,1734024643592,-523.73645135,0.00020171,2]
[345112551,1734024643601,-601.96,0.00020171,2]
[345112552,1734024643611,-500.0,0.00020171,2]
[345112553,1734024643620,-500.0,0.00020171,2]
[345112554,1734024643630,-500.0,0.00020171,2]
[345112555,1734024643640,-500.0,0.00020171,2]
[345112556,1734024643649,-500.0,0.00020171,2]
[345112557,1734024643658,-311.79266791,0.00020171,2]
[345112558,1734024643668,-468.1014941,0.00020171,2]
[345112559,1734024643678,-500.0,0.00020171,2]
[345112560,1734024643688,-500.0,0.00020171,2]
[345112561,1734024643698,-392.38674322,0.00020171,2]
[345112562,1734024643707,-728.32,0.00020171,2]
[345112563,1734024643717,-502.33332313,0.00020171,2]
[345112564,1734024643727,-500.0,0.00020171,2]
[345112565,1734024643735,-500.0,0.00020171,2]
[345112566,1734024643745,-161.37,0.00020229,2]
[345112567,1734024643754,-334.0,0.00020258,2]
[345112568,1734024643764,-500.0,0.00020272,2]
[345112569,1734024643774,-500.0,0.00020272,2]
[345112570,1734024643783,-500.0,0.00020272,2]
[345112571,1734024643792,-464.97392897,0.00020272,2]
[345112572,1734024643801,-500.0,0.00020272,2]
[345112573,1734024643811,-500.0,0.00020272,2]
[345112574,1734024643821,-500.0,0.00020272,2]
[345112575,1734024643831,-500.0,0.00020272,2]
[345112576,1734024643840,-500.0,0.00020272,2]
[345112577,1734024643849,-500.0,0.00020272,2]
[345112578,1734024643859,-500.0,0.00020272,2]
[345112579,1734024643869,-500.0,0.00020272,2]
[345112580,1734024643879,-500.0,0.00020272,2]
[345112581,1734024643889,-500.0,0.00020272,2]
[345112582,1734024643898,-500.0,0.00020272,2]
[345112583,1734024643908,-500.0,0.00020272,2]
[345112584,1734024643917,-500.0,0.00020272,2]
[345112585,1734024643927,-500.0,0.00020272,2]
[345112586,1734024643936,-500.0,0.00020272,2]
[345112587,1734024643946,-500.0,0.00020272,2]
[345112588,1734024643956,-500.0,0.00020272,2]
[345112589,1734024643965,-500.0,0.00020272,2]
[345112590,1734024643975,-500.0,0.00020272,2]
[345112591,1734024643984,-500.0,0.00020272,2]
[345112592,1734024643993,-269.99965916,0.00020272,2]
[345112593,1734024644003,-500.0,0.00020272,2]
[345112594,1734024644013,-500.0,0.00020272,2]
[345112595,1734024644023,-500.0,0.00020272,2]
[345112596,1734024644033,-649.51,0.00020272,2]
[345112597,1734024644043,-500.0,0.00020272,2]
[345112598,1734024644052,-500.0,0.00020272,2]
[345112599,1734024644061,-500.0,0.00020272,2]
[345112600,1734024644071,-500.0,0.00020272,2]
[345112601,1734024644079,-415.5385111,0.00020272,2]
[345112602,1734024644089,-500.0,0.00020272,2]
[345112603,1734024644098,-506.8871872,0.00020272,2]
[345112604,1734024644108,-500.0,0.00020272,2]
[345112605,1734024644117,-500.0,0.00020272,2]
[345112606,1734024644126,-500.0,0.00020272,2]
[345112607,1734024644136,-524.27292862,0.00020272,2]
[345112608,1734024644146,-500.0,0.00020272,2]
[345112609,1734024644156,-500.0,0.00020272,2]
[345112610,1734024644165,-500.0,0.00020272,2]
[345112611,1734024644174,-500.0,0.00020272,2]
[345112612,1734024644183,-500.53,0.00020272,2]
[345112613,1734024644192,-500.0,0.00020272,2]
[345112614,1734024644201,-500.0,0.00020272,2]
[345112615,1734024644211,-1963.05202227,0.00020272,2]
[345112616,1734024644220,-558.36,0.00020272,2]
[345112617,1734024644230,-500.0,0.00020272,2]
[345112618,1734024644239,-500.0,0.00020272,2]
[345112619,1734024644249,-245.2250799,0.00020272,2]
[345112620,1734024644259,-500.0,0.00020272,2]
[345112621,1734024644419,-987.01,0.00020273,2]
[345112622,1734024644429,-1437.18,0.00020273,2]
[345112623,1734024644439,-500.0,0.00020273,2]
[345112624,1734024644448,-500.0,0.00020273,2]
[345112625,1734024644458,-500.0,0.00020273,2]
[345112626,1734024644467,-1075.73,0.00020273,2]
[345112627,1734024644477,-269.0,0.00020273,2]
[345112628,1734024644486,-500.0,0.00020273,2]
[345112629,1734024644495,-500.0,0.00020273,2]
[345112630,1734024644505,-500.0,0.00020273,2]
[345112631,1734024644516,-165.806,0.0002031,2]
[345112632,1734024644526,-500.0,0.00020323,2]
[345112633,1734024644536,-380.8961081,0.00020323,2]
[345112634,1734024644545,-500.0,0.00020323,2]
[345112635,1734024644554,-500.0,0.00020323,2]
[345112636,1734024644564,-500.0,0.00020323,2]
[345112637,1734024644573,-598.45,0.00020323,2]
[345112638,1734024644583,-617.5,0.00020323,2]
[345112639,1734024644592,-500.0,0.00020323,2]
[345112640,1734024644601,-550.56,0.00020323,2]
[345112641,1734024644611,-500.0,0.00020323,2]
[345112642,1734024644620,-194.71,0.00020323,2]
[345112643,1734024644630,-630.37,0.00020323,2]
[345112644,1734024644639,-500.0,0.00020323,2]
[345112645,1734024644649,-500.0,0.00020323,2]
[345112646,1734024644658,-500.0,0.00020323,2]
[345112647,1734024644666,-500.0,0.00020323,2]
[345112648,1734024644675,-500.0,0.00020323,2]
[345112649,1734024644685,-1963.05202227,0.00020384,2]
[345112650,1734024644694,-1000.0,0.0002039,2]
[345112651,1734024644704,-500.0,0.00020445,2]
[345112652,1734024644714,-500.0,0.00020445,2]
[345112653,1734024644724,-500.0,0.00020445,2]
[345112654,1734024644734,-500.0,0.00020445,2]
[345112655,1734024644743,-678.38,0.00020445,2]
[345112656,1734024644753,-500.84,0.00020445,2]
[345112657,1734024644763,-500.0,0.00020445,2]
[345112658,1734024644772,-653.16,0.00020445,2]
[345112659,1734024644782,-601.96,0.00020445,2]
[345112660,1734024644791,-500.0,0.00020445,2]
[345112661,1734024644801,-500.0,0.00020445,2]
[345112662,1734024644811,-500.0,0.00020445,2]
[345112663,1734024644820,-500.0,0.00020445,2]
[345112664,1734024644828,-500.0,0.00020445,2]
[345112665,1734024644837,-500.0,0.00020445,2]
[345112666,1734024644847,-500.0,0.00020445,2]
[345112667,1734024644857,-728.32,0.00020445,2]
[345112668,1734024644867,-500.0,0.00020445,2]
[345112669,1734024644876,-500.0,0.00020445,2]
[345112670,1734024644886,-64433.07619953,0.0002049,3]
[345112671,1734024644895,-422.25836631,0.00020496,2]
[345112672,1734024644904,-618.59,0.00020496,2]
[345112673,1734024644914,-500.0,0.00020496,2]
[345112674,1734024644924,-500.0,0.00020496,2]
[345112675,1734024644934,-500.0,0.00020496,2]
[345112676,1734024644944,-534.67,0.00020496,2]
[345112677,1734024644953,-500.0,0.00020496,2]
[345112678,1734024644963,-500.0,0.00020496,2]
[345112679,1734024644972,-547.16936195,0.00020496,2]
[345112680,1734024644983,-603.13,0.00020496,2]
[345112681,1734024644994,-500.0,0.00020496,2]
[345112682,1734024645003,-787.45,0.00020496,2]
[345112683,1734024645012,-500.0,0.00020496,2]
[345112684,1734024645021,-888.7,0.00020496,2]
[345112685,1734024645031,-868.32,0.00020496,2]
[345112686,1734024645041,-382.4128328,0.00020496,2]
[345112687,1734024645051,-500.0,0.00020496,2]
[345112688,1734024645060,-500.0,0.00020496,2]
[345112689,1734024645070,-500.0,0.00020496,2]
[345112690,1734024645080,-294.16,0.00020496,2]
[345112691,1734024645089,-500.0,0.00020496,2]
[345112692,1734024645098,-502.22018174,0.00020496,2]
[345112693,1734024645108,-500.0,0.00020496,2]
[345112694,1734024645117,-657.95,0.00020496,2]
[345112695,1734024645126,-500.0,0.00020496,2]
[345112696,1734024645136,-500.0,0.00020496,2]
[345112697,1734024645146,-500.0,0.00020496,2]
[345112698,1734024645156,-1421.73,0.00020496,2]
[345112699,1734024645166,-500.0,0.00020496,2]
[345112700,1734024645176,-1963.05202227,0.00020496,2]
[345112701,1734024645186,-500.0,0.00020496,2]
[345112702,1734024645195,-623.63,0.00020496,2]
[345112703,1734024645204,-500.0,0.00020496,2]
[345112704,1734024645213,-665.77,0.00020496,2]
[345112705,1734024645223,-500.0,0.00020496,2]
[345112706,1734024645235,-500.0,0.00020496,2]
[345112707,1734024645244,-500.0,0.00020496,2]
[345112708,1734024645254,-500.0,0.00020496,2]
[345112709,1734024645263,-702.96,0.00020496,2]
[345112710,1734024645272,-500.0,0.00020496,2]
[345112711,1734024645282,-666.0,0.00020499,2]
[345112712,1734024645291,-1183.15892808,0.000205,4]
[345112713,1734024645302,-1183.15892808,0.000205,4]
[345112714,1734024645311,-1183.15892808,0.000205,4]
[345112715,1734024645320,-1183.15892808,0.000205,4]
[345112716,1734024645329,-1183.15892808,0.000205,4]
[345112717,1734024645339,-1183.15892808,0.000205,4]
[345112718,1734024645349,-1183.15892808,0.000205,4]
[345112719,1734024645358,-1183.15892808,0.000205,4]
[345112720,1734024645368,-1183.15892808,0.000205,4]
[345112721,1734024645377,-1183.15792808,0.000205,4]
[345112722,1734024645387,-2366.31775615,0.000205,4]
[345112723,1734024645396,-2366.31775615,0.000205,4]
[345112724,1734024645405,-303214.1285975,0.000205,2]
[345112725,1734024645415,-1000.0,0.00020521,2]
[345112726,1734024645425,-320.0,0.00020532,2]
[345112727,1734024645434,-500.72184488,0.00020546,2]
[345112728,1734024645443,-500.0,0.00020546,2]
[345112729,1734024645453,-500.0,0.00020546,2]
[345112730,1734024645463,-584.52109685,0.00020546,2]
[345112731,1734024645473,-500.0,0.00020546,2]
[345112732,1734024645483,-500.0,0.00020546,2]
[345112733,1734024645494,-500.0,0.00020546,2]
[345112734,1734024645503,-500.0,0.00020546,2]
[345112735,1734024645514,-500.0,0.00020546,2]
[345112736,1734024645524,-500.0,0.00020546,2]
[345112737,1734024645535,-500.0,0.00020546,2]
[345112738,1734024645545,-500.0,0.00020546,2]
[345112739,1734024645555,-500.0,0.00020546,2]
[345112740,1734024645565,-649.51,0.00020546,2]
[345112741,1734024645574,-500.0,0.00020546,2]
[345112742,1734024645584,-500.0,0.00020546,2]
[345112743,1734024645593,-500.0,0.00020546,2]
[345112744,1734024645602,-500.0,0.00020546,2]
[345112745,1734024645611,-500.0,0.00020546,2]
[345112746,1734024645621,-500.0,0.00020546,2]
[345112747,1734024645630,-500.0,0.00020546,2]
[345112748,1734024645640,-500.0,0.00020546,2]
[345112749,1734024645650,-500.0,0.00020546,2]
[345112750,1734024645659,-500.0,0.00020546,2]
[345112751,1734024645669,-500.0,0.00020546,2]
[345112752,1734024645678,-500.0,0.00020546,2]
[345112753,1734024645689,-500.53,0.00020546,2]
[345112754,1734024645699,-500.0,0.00020546,2]
[345112755,1734024645707,-500.0,0.00020546,2]
[345112756,1734024645717,-558.36,0.00020546,2]
[345112757,1734024645726,-500.0,0.00020546,2]
[345112758,1734024645736,-500.0,0.00020546,2]
[345112759,1734024645746,-500.0,0.00020546,2]
[345112760,1734024645755,-987.01,0.00020547,2]
[345112761,1734024645765,-1437.18,0.00020547,2]
[345112762,1734024645775,-500.0,0.00020547,2]
[345112763,1734024645784,-500.0,0.00020547,2]
[345112764,1734024645793,-500.0,0.00020547,2]
[345112765,1734024645803,-1075.73,0.00020547,2]
[345112766,1734024645812,-500.0,0.00020547,2]
[345112767,1734024645822,-500.0,0.00020547,2]
[345112768,1734024645832,-500.0,0.00020547,2]
[345112769,1734024645842,-156.73,0.00020562,2]
[345112770,1734024645851,-500.0,0.00020597,2]
[345112771,1734024645862,-500.0,0.00020597,2]
[345112772,1734024645872,-500.0,0.00020597,2]
[345112773,1734024645881,-500.0,0.00020597,2]
[345112774,1734024645890,-598.45,0.00020597,2]
[345112775,1734024645900,-617.5,0.00020597,2]
[345112776,1734024645909,-500.0,0.00020597,2]
[345112777,1734024645919,-500.0,0.00020597,2]
[345112778,1734024645928,-630.37,0.00020597,2]
[345112779,1734024645939,-500.0,0.00020597,2]
[345112780,1734024645948,-500.0,0.00020597,2]
[345112781,1734024645958,-500.0,0.00020597,2]
[345112782,1734024645968,-500.0,0.00020597,2]
[345112783,1734024645977,-500.0,0.00020597,2]
[345112784,1734024645987,-1963.05202227,0.00020608,2]
[345112785,1734024645996,-343.32610384,0.00020719,2]
[345112786,1734024646005,-500.0,0.00020719,2]
[345112787,1734024646015,-500.0,0.00020719,2]
[345112788,1734024646024,-500.0,0.00020719,2]
[345112789,1734024646033,-678.38,0.00020719,2]
[345112790,1734024646043,-500.0,0.00020719,2]
[345112791,1734024646053,-653.16,0.00020719,2]
[345112792,1734024646063,-601.96,0.00020719,2]
[345112793,1734024646073,-500.0,0.00020719,2]
[345112794,1734024646082,-500.0,0.00020719,2]
[345112795,1734024646092,-500.0,0.00020719,2]
[345112796,1734024646101,-500.0,0.00020719,2]
[345112797,1734024646111,-500.0,0.00020719,2]
[345112798,1734024646121,-500.0,0.00020719,2]
[345112799,1734024646131,-229.97142579,0.00020719,2]
[345112800,1734024646141,-728.32,0.00020719,2]
[345112801,1734024646151,-500.0,0.00020719,2]
[345112802,1734024646160,-500.0,0.00020719,2]
[345112803,1734024646169,-1963.05202227,0.0002072,2]
[345112804,1734024646179,-618.59,0.0002077,2]
[345112805,1734024646188,-509.6,0.0002077,2]
[345112806,1734024646197,-500.0,0.0002077,2]
[345112807,1734024646207,-534.67,0.0002077,2]
[345112808,1734024646217,-500.0,0.0002077,2]
[345112809,1734024646227,-500.0,0.0002077,2]
[345112810,1734024646237,-603.13,0.0002077,2]
[345112811,1734024646247,-500.0,0.0002077,2]
[345112812,1734024646257,-787.45,0.0002077,2]
[345112813,1734024646267,-888.7,0.0002077,2]
[345112814,1734024646276,-868.32,0.0002077,2]
[345112815,1734024646286,-230.34,0.0002077,2]
[345112816,1734024646296,-500.0,0.0002077,2]
[345112817,1734024646306,-500.0,0.0002077,2]
[345112818,1734024646315,-500.0,0.0002077,2]
[345112819,1734024646326,-500.0,0.0002077,2]
[345112820,1734024646336,-657.95,0.0002077,2]
[345112821,1734024646345,-437.11000006,0.0002077,2]
[345112822,1734024646354,-615.05045627,0.0002077,2]
[345112823,1734024646363,-500.0,0.0002077,2]
[345112825,1734024646373,-1421.73,0.0002077,2]
[345112827,1734024646382,-500.0,0.0002077,2]
[345112829,1734024646392,-500.0,0.0002077,2]
[345112831,1734024646401,-623.63,0.0002077,2]
[345112833,1734024646410,-500.0,0.0002077,2]
[345112835,1734024646420,-665.77,0.0002077,2]
[345112836,1734024646429,-500.0,0.0002077,2]
[345112837,1734024646439,-289.83,0.0002077,2]
[345112838,1734024646448,-266.96315227,0.0002077,2]
[345112839,1734024646458,-702.96,0.0002077,2]
[345112840,1734024646468,-500.0,0.0002077,2]
[345112841,1734024646478,-248.71,0.0002081,7]
[345112842,1734024646487,-420.45149318,0.0002082,2]
[345112843,1734024646498,-500.0,0.0002082,2]
[345112844,1734024646508,-500.0,0.0002082,2]
[345112845,1734024646519,-500.0,0.0002082,2]
[345112846,1734024646529,-500.0,0.0002082,2]
[345112847,1734024646539,-500.0,0.0002082,2]
[345112848,1734024646550,-500.0,0.0002082,2]
[345112849,1734024646559,-500.0,0.0002082,2]
[345112850,1734024646569,-500.0,0.0002082,2]
[345112851,1734024646578,-500.0,0.0002082,2]
[345112852,1734024646587,-649.51,0.0002082,2]
[345112853,1734024646597,-500.0,0.0002082,2]
[345112854,1734024646606,-500.0,0.0002082,2]
[345112855,1734024646615,-384.64534358,0.0002082,2]
[345112856,1734024646639,-500.0,0.0002082,2]
[345112857,1734024646649,-500.0,0.0002082,2]
[345112858,1734024646659,-400.70342027,0.0002082,2]
[345112859,1734024646669,-500.0,0.0002082,2]
[345112860,1734024646681,-500.0,0.0002082,2]
[345112861,1734024646691,-500.0,0.0002082,2]
[345112862,1734024646700,-500.0,0.0002082,2]
[345112863,1734024646710,-500.53,0.0002082,2]
[345112864,1734024646719,-500.0,0.0002082,2]
[345112865,1734024646729,-500.0,0.0002082,2]
[345112866,1734024646738,-558.36,0.0002082,2]
[345112867,1734024646748,-500.0,0.0002082,2]
[345112868,1734024646757,-500.0,0.0002082,2]
[345112869,1734024646766,-500.0,0.0002082,2]
[345112870,1734024646775,-987.01,0.00020821,2]
[345112871,1734024646784,-1437.18,0.00020821,2]
[345112872,1734024646794,-548.72537411,0.00020821,2]
[345112873,1734024646804,-500.0,0.00020821,2]
[345112874,1734024646813,-500.0,0.00020821,2]
[345112875,1734024646823,-1075.73,0.00020821,2]
[345112876,1734024646833,-500.0,0.00020821,2]
[345112877,1734024646842,-500.0,0.00020821,2]
[345112878,1734024646851,-500.0,0.00020821,2]
[345112879,1734024646861,-1963.05202227,0.00020832,2]
[345112880,1734024646871,-500.0,0.00020871,2]
[345112881,1734024646881,-500.0,0.00020871,2]
[345112882,1734024646890,-500.0,0.00020871,2]
[345112883,1734024646899,-500.0,0.00020871,2]
[345112884,1734024646908,-598.45,0.00020871,2]
[345112885,1734024646919,-617.5,0.00020871,2]
[345112886,1734024646928,-500.0,0.00020871,2]
[345112887,1734024646939,-500.0,0.00020871,2]
[345112888,1734024646949,-630.37,0.00020871,2]
[345112889,1734024646959,-500.0,0.00020871,2]
[345112890,1734024646969,-500.0,0.00020871,2]
[345112891,1734024646979,-500.0,0.00020871,2]
[345112892,1734024646989,-500.0,0.00020871,2]
[345112893,1734024646999,-500.0,0.00020871,2]
[345112894,1734024647009,-982.68,0.00020872,2]
[345112895,1734024647019,-1963.05202227,0.00020944,2]
[345112896,1734024647028,-150.0,0.00020991,2]
[345112897,1734024647038,-500.0,0.00020993,2]
[345112898,1734024647048,-500.0,0.00020993,2]
[345112899,1734024647058,-500.0,0.00020993,2]
[345112900,1734024647067,-678.38,0.00020993,2]
[345112901,1734024647076,-500.0,0.00020993,2]
[345112902,1734024647085,-653.16,0.00020993,2]
[345112903,1734024647094,-601.96,0.00020993,2]
[345112904,1734024647104,-500.0,0.00020993,2]
[345112905,1734024647112,-500.0,0.00020993,2]
[345112906,1734024647122,-500.0,0.00020993,2]
[345112907,1734024647132,-500.0,0.00020993,2]
[345112908,1734024647141,-500.0,0.00020993,2]
[345112909,1734024647150,-500.0,0.00020993,2]
[345112910,1734024647160,-728.32,0.00020993,2]
[345112911,1734024647170,-500.0,0.00020993,2]
[345112912,1734024647179,-500.0,0.00020993,2]
[345112913,1734024647188,-185.0,0.00020994,2]
[345112914,1734024647198,-2697514.28856899,0.00021,2]
[345112915,1734024647208,-52270.2315809,0.00021,30]
[345112916,1734024647217,-8086.73517866,0.00021,2]
[345112917,1734024647227,-1140.43724948,0.00021,2]
[345112918,1734024647236,-188.17866751,0.00021,2]
[345112919,1734024647246,-177.95324,0.00021,2]
[345112920,1734024647255,-151.0,0.00021,2]
[345112921,1734024647264,-618.59,0.00021044,2]
[345112922,1734024647273,-500.0,0.00021044,2]
[345112923,1734024647283,-534.67,0.00021044,2]
[345112924,1734024647293,-500.0,0.00021044,2]
[345112925,1734024647303,-500.0,0.00021044,2]